bitfinex/quotes_SOLUSD_20251226
["timestamp","ask_amount","ask_price","bid_price","bid_amount"]
[1766762971249,0.71,121.41,121.35,23.28054474]
[1766762971470,0.71,121.4,121.36,9.45943635]
[1766762971683,0.71,121.4,121.35,8.24054474]
[1766762971978,0.71,121.4,121.36,9.45943635]
[1766762972289,0.71,121.39,121.35,24.49943635]
[1766762972454,0.71,121.39,121.35,15.04]
[1766762972658,0.71,121.39,121.35,24.49943635]
[1766762973884,0.71,121.39,121.35,15.04]
[1766762974086,0.71,121.38,121.35,15.04]
[1766762974393,0.71,121.38,121.35,24.49943635]
[1766762974884,11.14767296,121.4,121.35,23.28042684]
[1766762975091,0.71,121.4,121.36,9.45943635]
[1766762975262,0.71,121.39,121.35,23.28042684]
[1766762975459,0.71,121.39,121.36,9.45943635]
[1766762976591,9.45943635,121.41,121.36,9.45943635]
[1766762976592,0.71,121.41,121.37,9.45943635]
[1766762977788,9.45943635,121.41,121.35,33.71816022]
[1766762977976,0.71,121.39,121.35,31.29330608]
[1766762978404,0.71,121.39,121.35,16.25330608]
[1766762978584,0.71,121.39,121.35,39.53381596]
[1766762978784,0.71,121.39,121.36,5.81563312]
[1766762979092,0.71,121.39,121.35,29.096143]
[1766762982601,0.71,121.39,121.35,15.04]
[1766762982900,0.71,121.38,121.35,15.04]
[1766762983493,0.71,121.38,121.34,14.0567287]
[1766762983699,0.71,121.38,121.34,29.0967287]
[1766762983971,0.71,121.38,121.34,23.28109558]
[1766762984174,0.71,121.38,121.35,5.81563312]
[1766762984400,0.7,121.37,121.33,23.28172016]
[1766762984795,0.7,121.37,121.33,29.09735328]
[1766762985103,0.7,121.37,121.33,23.28172016]
[1766762985286,0.7,121.37,121.34,5.81563312]
[1766762987107,0.7,121.37,121.33,29.09735328]
[1766762987282,0.7,121.37,121.33,23.28172016]
[1766762987484,0.7,121.37,121.33,29.09735328]
[1766762987808,0.7,121.37,121.34,5.81563312]
[1766762989908,0.7,121.42,121.35,6.11563312]
[1766762990117,0.7,121.39,121.35,14.35617544]
[1766762990281,0.7,121.4,121.36,21.15563312]
[1766762990594,0.7,121.4,121.36,20.85563312]
[1766762990779,0.66,121.39,121.36,15.04]
[1766762994020,0.66,121.39,121.35,29.09617544]
[1766762995219,0.66,121.39,121.35,29.39617544]
[1766762995417,0.66,121.4,121.36,5.81563312]
[1766762997095,0.66,121.4,121.35,23.58054232]
[1766762997296,0.66,121.4,121.36,5.81563312]
[1766762999001,0.66,121.4,121.35,23.58054232]
[1766762999232,0.66,121.4,121.36,5.81563312]
[1766762999440,0.66,121.4,121.36,14.3555402]
[1766762999632,0.66,121.4,121.37,5.81563312]
[1766762999795,0.66,121.4,121.36,8.53990708]
[1766762999796,0.66,121.4,121.36,14.3555402]
[1766763000132,16.25330608,121.41,121.35,23.28041919]
[1766763000133,5.90223996,121.39,121.35,23.28041919]
[1766763000426,0.66,121.39,121.35,14.05605231]
[1766763000631,10.43767296,121.41,121.31,0.3]
[1766763000632,0.66,121.37,121.31,0.3]
[1766763000844,5.81563312,121.35,121.26,25.23250865]
[1766763001136,0.66,121.33,121.3,14.05956726]
[1766763001418,0.66,121.37,121.31,23.28279101]
[1766763001745,10.43767296,121.43,121.31,54.32882272]
[1766763001899,5.91101499,121.42,121.33,0.3]
[1766763002100,0.66,121.38,121.34,6.11563312]
[1766763002315,0.66,121.38,121.34,21.15563312]
[1766763002515,5.91391148,121.37,121.34,21.15563312]
[1766763002704,5.81563312,121.38,121.34,15.04]
[1766763002908,0.66,121.35,121.3,8.24381082]
[1766763003111,6.57415544,121.34,121.3,29.09944394]
[1766763003433,0.66,121.34,121.3,15.04]
[1766763003728,0.66,121.32,121.28,20.85563312]
[1766763004506,0.66,121.32,121.28,29.10083491]
[1766763006608,30.04,121.4,121.29,5.81563312]
[1766763006609,10.43767296,121.36,121.29,5.81563312]
[1766763006806,0.66,121.33,121.28,23.28520179]
[1766763007006,0.66,121.33,121.29,5.81563312]
[1766763007211,5.81563312,121.33,121.28,23.28520179]
[1766763007419,0.66,121.32,121.28,29.10083491]
[1766763007911,0.66,121.32,121.28,15.04]
[1766763008105,0.66,121.32,121.28,20.85563312]
[1766763009237,0.66,121.32,121.28,15.04]
[1766763009441,0.66,121.29,121.25,5.81563312]
[1766763009646,5.81563312,121.3,121.25,5.81563312]
[1766763009647,0.66,121.3,121.26,5.81563312]
[1766763009852,0.66,121.3,121.27,5.81563312]
[1766763010011,5.81563312,121.3,121.25,21.15563312]
[1766763010210,0.66,121.29,121.25,21.15563312]
[1766763010438,0.66,121.29,121.25,29.40261367]
[1766763011330,5.81563312,121.31,121.26,14.06220712]
[1766763011638,5.81563312,121.3,121.25,29.1027957]
[1766763011849,0.66,121.28,121.25,15.04]
[1766763012003,5.81563312,121.3,121.25,5.81563312]
[1766763012204,0.66,121.3,121.26,5.81563312]
[1766763012701,0.66,121.29,121.25,14.06284826]
[1766763012936,0.66,121.29,121.25,5.81563312]
[1766763013141,0.66,121.28,121.24,31.29330608]
[1766763013456,5.81563312,121.29,121.21,14.36532475]
[1766763013457,0.66,121.25,121.21,14.36532475]
[1766763013747,0.66,121.25,121.22,5.81563312]
[1766763014119,0.66,121.25,121.21,34.02736459]
[1766763014738,50.68666007,121.32,121.24,5.81563312]
[1766763014739,0.66,121.28,121.24,5.81563312]
[1766763015134,0.66,121.28,121.22,8.54915311]
[1766763015325,0.66,121.28,121.24,5.81563312]
[1766763015926,0.66,121.28,121.24,14.06342445]
[1766763016544,6.47563312,121.28,121.24,8.24779133]
[1766763016850,0.66,121.27,121.23,8.2485402]
[1766763017054,0.66,121.27,121.23,14.06417332]
[1766763017460,0.66,121.27,121.24,8.24793528]
[1766763017748,0.66,121.27,121.23,14.06418339]
[1766763017935,0.66,121.25,121.22,8.24929845]
[1766763018122,0.66,121.28,121.23,0.3]
[1766763018317,25.47767296,121.32,121.24,5.81563312]
[1766763018522,0.66,121.29,121.25,5.81563312]
[1766763018722,0.66,121.26,121.22,8.24929845]
[1766763018943,0.66,121.26,121.23,5.81563312]
[1766763019652,0.66,121.26,121.22,14.06493157]
[1766763020144,0.66,121.26,121.23,5.81563312]
[1766763020346,104.9,121.3,121.23,5.81563312]
[1766763020553,0.66,121.29,121.25,5.81563312]
[1766763021145,0.66,121.29,121.26,5.81563312]
[1766763021950,0.66,121.31,121.28,5.81563312]
[1766763022750,0.66,121.31,121.26,8.24647269]
[1766763022939,0.66,121.3,121.26,14.06210581]
[1766763023127,0.66,121.3,121.27,5.81563312]
[1766763024157,0.66,121.3,121.27,14.06149892]
[1766763024449,0.66,121.3,121.26,14.06209775]
[1766763024656,0.66,121.3,121.27,5.81563312]
[1766763025651,0.66,121.3,121.26,8.24646463]
[1766763026158,0.66,121.29,121.25,5.81563312]
[1766763026569,0.66,121.28,121.24,20.85563312]
[1766763026864,5.81563312,121.28,121.24,20.85563312]
[1766763027039,5.81563312,121.28,121.24,5.81563312]
[1766763027040,0.66,121.27,121.24,5.81563312]
[1766763027446,0.66,121.27,121.24,14.06372286]
[1766763027639,5.81563312,121.3,121.25,14.36304523]
[1766763027848,5.81563312,121.3,121.25,14.06304523]
[1766763027849,0.66,121.29,121.25,14.06304523]
[1766763028254,0.66,121.3,121.26,6.11563312]
[1766763028439,0.66,121.3,121.26,5.81563312]
[1766763030032,0.66,121.3,121.26,14.06222353]
[1766763030653,0.66,121.3,121.27,5.81563312]
[1766763031145,0.66,121.3,121.26,8.24659041]
[1766763031344,0.66,121.3,121.26,14.06222353]
[1766763032557,0.66,121.3,121.26,8.24659041]
[1766763032763,0.66,121.3,121.26,14.06222353]
[1766763033258,0.66,121.29,121.25,29.10286265]
[1766763033449,0.66,121.28,121.24,29.10327683]
[1766763034364,0.66,121.32,121.27,16.55330608]
[1766763034574,0.66,121.32,121.27,10.73767296]
[1766763034866,5.81563312,121.31,121.25,9.37195051]
[1766763035029,0.66,121.3,121.25,8.24720825]
[1766763035233,0.66,121.3,121.26,14.06235432]
[1766763035433,0.66,121.3,121.27,5.81563312]
[1766763035833,0.66,121.3,121.26,8.5467212]
[1766763036033,0.66,121.3,121.27,5.81563312]
[1766763036256,0.66,121.3,121.26,14.36235432]
[1766763037347,0.66,121.3,121.26,34.97921066]
[1766763037660,0.66,121.3,121.27,14.06103086]
[1766763038075,0.66,121.3,121.27,12.06656656]
[1766763038745,0.66,121.3,121.27,8.24539774]
[1766763038944,0.66,121.33,121.28,4.12116882]
[1766763039276,0.66,121.34,121.3,0.3]
[1766763039463,0.66,121.34,121.3,4.12116882]
[1766763039666,18.88116882,121.38,121.3,4.12116882]
[1766763039667,3.82116882,121.36,121.3,4.12116882]
[1766763039847,3.82116882,121.36,121.28,15.04]
[1766763039848,0.66,121.36,121.32,3.82116882]
[1766763040048,0.66,121.38,121.34,9.75278351]
[1766763040258,0.66,121.43,121.35,1.12406262]
[1766763040460,51.37101353,121.49,121.35,9.75278351]
[1766763040461,0.66,121.4,121.35,9.75278351]
[1766763040662,4.30295183,121.44,121.36,17.69210444]
[1766763040975,0.66,121.43,121.39,0.3]
[1766763041881,0.66,121.43,121.39,9.75278351]
[1766763042753,0.66,121.43,121.39,17.69035639]
[1766763043161,0.66,121.43,121.4,10.43767296]
[1766763043683,0.69,121.41,121.37,23.27880128]
[1766763043882,9.45278351,121.41,121.37,15.04]
[1766763044063,0.69,121.4,121.35,24.49278351]
[1766763044264,9.45278351,121.39,121.35,15.04]
[1766763044563,0.69,121.38,121.34,17.69388948]
[1766763045168,0.69,121.38,121.34,8.24110597]
[1766763045571,15.04,121.42,121.34,17.69388948]
[1766763045782,0.69,121.38,121.34,17.69388948]
[1766763046162,0.69,121.38,121.34,8.24110597]
[1766763046364,0.69,121.38,121.34,17.69388948]
[1766763047286,0.69,121.38,121.34,8.24110597]
[1766763047513,0.69,121.38,121.34,17.69388948]
[1766763048589,0.69,121.46,121.38,0.3]
[1766763048763,5.90275992,121.45,121.39,9.45278351]
[1766763048973,0.69,121.45,121.4,9.75278351]
[1766763049168,0.69,121.45,121.4,15.34]
[1766763049370,0.69,121.45,121.4,24.79278351]
[1766763049565,0.69,121.47,121.43,9.45278351]
[1766763050178,36.37101353,121.49,121.41,0.82365538]
[1766763050393,0.69,121.48,121.43,9.45278351]
[1766763050593,0.69,121.45,121.41,0.82365538]
[1766763050891,0.69,121.45,121.42,9.45278351]
[1766763051062,0.69,121.45,121.41,9.06002059]
[1766763051266,0.69,121.45,121.42,9.45278351]
[1766763051468,0.69,121.47,121.42,9.45278351]
[1766763051868,0.69,121.47,121.42,9.75278351]
[1766763052272,11.12767296,121.49,121.43,0.82351972]
[1766763052473,11.12767296,121.49,121.44,9.45278351]
[1766763052692,0.69,121.48,121.44,9.45278351]
[1766763053076,0.69,121.48,121.43,16.16351972]
[1766763053077,9.45278351,121.47,121.43,15.04]
[1766763053274,0.69,121.46,121.43,15.04]
[1766763053676,0.69,121.45,121.43,15.04]
[1766763054094,0.69,121.45,121.41,8.23642707]
[1766763054490,0.69,121.45,121.41,17.68921058]
[1766763054794,0.69,121.48,121.44,9.75278351]
[1766763055269,166.6,121.51,121.44,0.3]
[1766763055270,0.69,121.5,121.44,0.3]
[1766763055470,0.69,121.5,121.45,9.45278351]
[1766763055684,9.45278351,121.5,121.45,9.45278351]
[1766763055994,0.69,121.48,121.43,15.04]
[1766763056196,0.69,121.48,121.44,9.45278351]
[1766763056576,0.69,121.48,121.44,17.68680497]
[1766763057169,0.69,121.48,121.44,8.23402146]
[1766763057375,0.69,121.48,121.43,23.5750029]
[1766763057582,0.69,121.48,121.43,33.02778641]
[1766763057785,0.69,121.47,121.43,23.2750029]
[1766763058070,11.12767296,121.49,121.44,9.75278351]
[1766763058276,0.69,121.49,121.44,9.75278351]
[1766763058471,0.69,121.49,121.44,17.98692571]
[1766763058691,0.69,121.49,121.45,9.45278351]
[1766763058872,0.69,121.49,121.44,38.57322347]
[1766763059577,9.55278351,121.51,121.45,9.75278351]
[1766763059778,10.14278351,121.5,121.45,9.75278351]
[1766763059974,0.69,121.5,121.45,9.75278351]
[1766763060482,0.69,121.5,121.46,8.23316318]
[1766763060880,9.55278351,121.51,121.46,17.98594669]
[1766763061081,0.1,121.51,121.47,0.3]
[1766763061273,0.1,121.51,121.47,9.75278351]
[1766763061605,9.45278351,121.48,121.45,15.02]
[1766763061774,0.69,121.5,121.45,15.02]
[1766763062102,10.53767296,121.51,121.41,8.53636073]
[1766763062103,0.69,121.46,121.41,8.53636073]
[1766763062405,0.69,121.45,121.42,15.02]
[1766763062778,10.14278351,121.45,121.42,15.02]
[1766763063086,0.69,121.45,121.42,23.25587061]
[1766763064102,0.69,121.45,121.42,15.02]
[1766763064405,10.14278351,121.45,121.4,33.99426324]
[1766763064985,10.14278351,121.45,121.41,8.23655382]
[1766763065380,0.69,121.45,121.41,8.23655382]
[1766763065581,10.14278351,121.45,121.41,8.23655382]
[1766763065900,0.69,121.43,121.4,15.02]
[1766763066281,0.69,121.43,121.4,23.2571368]
[1766763067376,0.69,121.46,121.41,0.3]
[1766763067602,0.1,121.51,121.42,9.45278351]
[1766763067807,10.14278351,121.49,121.44,9.75278351]
[1766763068102,0.79,121.51,121.46,9.45278351]
[1766763068300,0.69,121.5,121.46,24.47278351]
[1766763068479,0.1,121.51,121.47,9.75278351]
[1766763068676,0.1,121.51,121.48,9.75278351]
[1766763069183,0.1,121.51,121.48,8.53117668]
[1766763069378,0.1,121.51,121.48,17.98396019]
[1766763069581,0.1,121.51,121.48,17.68396019]
[1766763069889,0.69,121.5,121.46,24.47278351]
[1766763070198,0.69,121.5,121.47,9.45278351]
[1766763070593,10.14278351,121.5,121.46,15.02]
[1766763070905,0.1,121.51,121.48,0.3]
[1766763071210,0.79,121.51,121.48,8.2317545]
[1766763071710,0.1,121.51,121.48,8.2317545]
[1766763071877,0.79,121.51,121.48,8.2317545]
[1766763072489,0.1,121.51,121.48,28.81127376]
[1766763072707,0.1,121.51,121.48,38.26405727]
[1766763072881,9.55278351,121.51,121.45,1.1233841]
[1766763073085,0.69,121.49,121.46,15.02]
[1766763073505,0.79,121.51,121.46,23.55311204]
[1766763073704,10.24278351,121.51,121.46,33.00589555]
[1766763073910,0.79,121.51,121.46,33.00589555]
[1766763074097,0.79,121.51,121.47,9.75278351]
[1766763074411,0.79,121.51,121.47,0.3]
[1766763074600,0.79,121.51,121.47,9.75278351]
[1766763075105,0.79,121.51,121.48,8.2318077]
[1766763075414,0.82,121.56,121.5,20.19045647]
[1766763075603,0.82,121.56,121.5,10.73767296]
[1766763075604,6.56395931,121.55,121.5,10.73767296]
[1766763075794,0.72,121.55,121.51,9.45278351]
[1766763076110,0.1,121.56,121.53,9.45278351]
[1766763076289,1e-08,121.56,121.54,9.45278351]
[1766763076483,1e-08,121.56,121.53,9.75278351]
[1766763077009,1e-08,121.56,121.54,1.12277439]
[1766763077213,1e-08,121.56,121.55,32.99985056]
[1766763077532,1e-08,121.56,121.55,23.54706705]
[1766763077713,1e-08,121.56,121.55,15.02]
[1766763077887,0.72000001,121.56,121.55,15.02]
[1766763078196,0.82,121.58,121.54,32.70000019]
[1766763078610,0.82,121.58,121.55,9.45278351]
[1766763078923,0.1,121.58,121.55,9.45278351]
[1766763079300,0.1,121.58,121.55,9.75278351]
[1766763079687,0.1,121.58,121.54,43.81657656]
[1766763079909,0.72,121.57,121.54,15.02]
[1766763080120,0.72,121.57,121.54,23.24753329]
[1766763080791,0.1,121.58,121.56,0.3]
[1766763081114,0.1,121.58,121.55,9.75278351]
[1766763081410,0.1,121.6,121.56,17.67917376]
[1766763081591,0.1,121.6,121.56,8.52639025]
[1766763081910,5.85745097,121.59,121.56,8.22639025]
[1766763082086,10.27278351,121.6,121.56,8.22639025]
[1766763082490,5.85901414,121.59,121.56,8.22639025]
[1766763082712,1e-08,121.6,121.58,9.45278351]
[1766763082913,1e-08,121.61,121.57,15.84257135]
[1766763083318,0.72000001,121.61,121.57,15.02]
[1766763083503,0.72000001,121.61,121.58,9.45278351]
[1766763083504,1e-08,121.61,121.58,9.45278351]
[1766763083818,1e-08,121.61,121.59,0.2]
[1766763084117,1e-08,121.64,121.61,0.2]
[1766763084308,1e-08,121.64,121.63,10.43767296]
[1766763084520,0.72,121.69,121.65,9.45278351]
[1766763084692,0.82,121.71,121.64,0.2]
[1766763084887,0.72,121.67,121.63,10.43767296]
[1766763085098,9.45278351,121.68,121.59,6.1281]
[1766763085099,0.72,121.63,121.59,10.43767296]
[1766763085494,9.45278351,121.63,121.59,10.43767296]
[1766763085696,0.72,121.61,121.58,15.02]
[1766763085910,0.72,121.61,121.6,10.43767296]
[1766763086119,0.72,121.66,121.6,19.89045647]
[1766763086321,0.72,121.64,121.6,10.43767296]
[1766763086495,0.72,121.66,121.61,24.47278351]
[1766763086896,25.45767296,121.68,121.63,9.45278351]
[1766763086897,10.17278351,121.68,121.63,9.45278351]
[1766763087099,0.72,121.68,121.64,24.47278351]
[1766763087307,0.1,121.71,121.66,8.41962847]
[1766763087529,10.27278351,121.71,121.66,8.21962847]
[1766763087824,0.2,121.72,121.69,9.45278351]
[1766763087993,0.2,121.72,121.68,0.2]
[1766763088194,0.2,121.72,121.69,15.02]
[1766763088606,0.1,121.73,121.7,9.45278351]
[1766763089010,237.14351613,121.77,121.69,9.45278351]
[1766763089011,9.45278351,121.75,121.69,9.45278351]
[1766763089218,0.72,121.72,121.69,15.02]
[1766763090143,0.72,121.72,121.65,8.22017145]
[1766763090144,9.45278351,121.7,121.65,8.22017145]
[1766763090448,15.02,121.75,121.66,9.45278351]
[1766763090449,10.43767296,121.73,121.66,9.45278351]
[1766763090741,0.72,121.72,121.69,8.21736729]
[1766763090937,0.72,121.74,121.69,32.6701508]
[1766763091143,0.72,121.74,121.7,9.45278351]
[1766763091440,0.72,121.74,121.7,17.66932229]
[1766763091639,0.72,121.74,121.7,9.45278351]
[1766763091853,0.72,121.74,121.7,17.66962945]
[1766763092222,0.72,121.78,121.71,0.2]
[1766763092417,0.72,121.78,121.72,15.0]
[1766763092642,0.72,121.75,121.71,9.45278351]
[1766763092942,0.72,121.77,121.73,9.45278351]
[1766763093146,0.72,121.77,121.7,28.75916311]
[1766763093147,0.78,121.79,121.76,9.45278351]
[1766763093328,1e-08,121.79,121.77,9.45278351]
[1766763093526,1e-08,121.79,121.78,9.45278351]
[1766763093726,1e-08,121.79,121.77,24.45278351]
[1766763094131,0.68,121.78,121.75,18.65095733]
[1766763094344,0.68,121.78,121.75,8.2133288]
[1766763094541,0.68,121.78,121.74,8.21376295]
[1766763094742,0.68,121.77,121.73,25.43767296]
[1766763094947,0.68,121.76,121.71,24.45278351]
[1766763095130,0.68,121.74,121.71,15.0]
[1766763095533,0.68,121.74,121.69,19.89045647]
[1766763095534,0.68,121.73,121.69,15.0]
[1766763096030,0.68,121.73,121.69,23.21750438]
[1766763096235,15.0,121.77,121.69,15.0]
[1766763096533,0.68,121.75,121.68,9.45278351]
[1766763096855,0.68,121.73,121.69,9.45278351]
[1766763097051,0.68,121.73,121.69,10.43767296]
[1766763097233,10.43767297,121.79,121.68,15.0]
[1766763097234,0.68,121.71,121.68,15.0]
[1766763097561,0.68,121.76,121.7,9.45278351]
[1766763097724,0.68,121.74,121.7,9.45278351]
[1766763097925,0.68,121.74,121.69,9.45278351]
[1766763098148,0.68,121.74,121.68,54.20158114]
[1766763098442,0.68,121.74,121.68,54.40158114]
[1766763098648,0.68,121.74,121.69,24.45278351]
[1766763099040,9.45278351,121.75,121.7,9.45278351]
[1766763099250,0.68,121.77,121.71,10.43767296]
[1766763099548,0.68,121.77,121.73,17.66768534]
[1766763099964,0.68,121.77,121.74,6.50076342]
[1766763100141,0.68,121.77,121.73,8.21490183]
[1766763100142,1e-08,121.79,121.73,8.87490183]
[1766763100328,1e-08,121.79,121.76,6.50076342]
[1766763100526,1e-08,121.79,121.75,21.50076342]
[1766763100955,1e-08,121.79,121.75,6.50076342]
[1766763101248,1e-08,121.79,121.74,15.0]
[1766763101429,6.50076342,121.78,121.72,25.43767296]
[1766763101634,6.50076342,121.78,121.72,33.65303112]
[1766763101838,1e-08,121.79,121.73,6.50076342]
[1766763102147,0.68000001,121.79,121.72,15.0]
[1766763102358,0.68,121.75,121.72,8.21556551]
[1766763102571,0.68,121.77,121.73,6.50076342]
[1766763102930,0.68,121.77,121.72,28.75450734]
[1766763103135,0.68,121.77,121.73,21.50076342]
[1766763103333,6.50076342,121.77,121.72,6.50076342]
[1766763103532,0.68,121.76,121.72,8.21545527]
[1766763103747,6.50076342,121.76,121.71,23.21614345]
[1766763103961,0.68,121.74,121.7,33.65416231]
[1766763104152,0.68,121.74,121.7,40.15492573]
[1766763104660,0.68,121.74,121.7,40.15518326]
[1766763105061,0.68,121.74,121.69,6.50076342]
[1766763105361,0.68,121.74,121.64,0.71]
[1766763105362,6.50076342,121.7,121.64,0.71]
[1766763105562,0.71,121.69,121.66,6.50076342]
[1766763105764,0.71,121.73,121.68,6.50076342]
[1766763105967,0.71,121.75,121.71,6.50076342]
[1766763106262,0.71,121.74,121.71,6.50076342]
[1766763106561,0.71,121.74,121.7,6.50076342]
[1766763106955,0.71,121.74,121.69,0.71]
[1766763107266,0.71,121.74,121.7,6.50076342]
[1766763107440,0.71,121.74,121.7,14.71769028]
[1766763107760,0.71,121.74,121.7,8.21692686]
[1766763107953,0.71,121.73,121.69,8.21759904]
[1766763108135,0.71,121.73,121.69,14.71836246]
[1766763108335,0.71,121.73,121.69,35.26236771]
[1766763108541,0.71,121.75,121.71,6.50076342]
[1766763108977,0.71,121.75,121.69,29.47160429]
[1766763109147,6.50076342,121.75,121.7,0.71]
[1766763109466,0.71,121.77,121.73,8.21490183]
[1766763109966,7.21076342,121.77,121.73,8.21490183]
[1766763110357,10.43767296,121.78,121.73,8.21490183]
[1766763110358,0.71,121.76,121.73,8.21490183]
[1766763110867,6.50076342,121.77,121.73,8.21490183]
[1766763111072,7.19076342,121.78,121.73,35.25291982]
[1766763111255,0.69,121.78,121.73,28.7521564]
[1766763111453,6.50076342,121.76,121.72,8.21536314]
[1766763111775,7.19076342,121.76,121.72,8.21536314]
[1766763112076,1e-08,121.79,121.73,0.68]
[1766763112276,1e-08,121.79,121.75,0.68]
[1766763112440,1e-08,121.79,121.74,22.18076342]
[1766763112645,1e-08,121.79,121.74,15.68]
[1766763112961,6.50076343,121.79,121.74,0.68]
[1766763113167,1e-08,121.79,121.74,15.0]
[1766763113476,6.50076343,121.79,121.75,8.21355236]
[1766763113771,1e-08,121.79,121.75,15.39431578]
[1766763114085,6.50076343,121.79,121.75,8.21355236]
[1766763114371,6.50076343,121.79,121.74,15.0]
[1766763114372,7.19076342,121.78,121.74,15.0]
[1766763114747,6.50076343,121.79,121.74,15.68]
[1766763115050,0.69000001,121.79,121.74,15.68]
[1766763115250,6.50076342,121.78,121.74,23.89420606]
[1766763115461,0.69000001,121.79,121.71,10.43767296]
[1766763115462,0.69,121.76,121.71,10.43767296]
[1766763115770,1e-08,121.79,121.76,0.68]
[1766763116146,1e-08,121.79,121.77,15.0]
[1766763116850,6.50076343,121.79,121.75,10.43767296]
[1766763117174,0.69000001,121.79,121.75,15.0]
[1766763117352,7.19076343,121.79,121.75,15.0]
[1766763117548,0.69000001,121.79,121.75,15.0]
[1766763117769,7.19076343,121.79,121.75,15.0]
[1766763118068,0.69000001,121.79,121.75,15.0]
[1766763118250,0.69,121.78,121.75,15.0]
[1766763118446,7.19076342,121.78,121.75,15.0]
[1766763118643,0.69,121.78,121.75,15.0]
[1766763118971,7.19076342,121.78,121.75,15.0]
[1766763119264,7.19076342,121.78,121.75,8.21337223]
[1766763119846,0.69,121.78,121.75,8.21337223]
[1766763120271,1e-08,121.79,121.76,0.68]
[1766763120471,0.69000001,121.79,121.76,0.82128777]
[1766763120684,0.69000001,121.79,121.75,23.19337223]
[1766763120844,6.50076342,121.76,121.71,1.50162517]
[1766763121047,0.69,121.74,121.69,0.68]
[1766763121271,0.69,121.71,121.67,8.21886531]
[1766763121474,6.50076342,121.7,121.66,14.98]
[1766763121648,10.43767296,121.74,121.66,14.98]
[1766763121649,7.19076342,121.69,121.66,14.98]
[1766763121848,0.69,121.69,121.66,23.19943721]
[1766763122048,7.19076342,121.69,121.66,23.19941557]
[1766763122473,0.69,121.67,121.64,8.2208543]
[1766763122681,0.69,121.67,121.65,8.22027153]
[1766763122859,7.19076342,121.69,121.65,8.22027153]
[1766763123055,15.0,121.77,121.68,10.43767296]
[1766763123362,6.50076342,121.71,121.68,25.43767296]
[1766763123556,6.50076342,121.71,121.68,33.65570509]
[1766763123763,6.50076342,121.72,121.68,33.65570509]
[1766763124269,21.50076342,121.77,121.65,15.0]
[1766763124270,6.50076342,121.7,121.65,15.0]
[1766763124571,10.43767296,121.74,121.65,32.61843638]
[1766763124790,6.50076342,121.7,121.65,26.11767296]
[1766763125155,0.69,121.7,121.65,26.11767296]
[1766763125676,6.50076342,121.69,121.66,8.21962847]
[1766763125869,7.19076342,121.69,121.65,25.43767296]
[1766763126073,0.69,121.76,121.66,0.68]
[1766763126276,0.69,121.76,121.7,7.18076342]
[1766763126481,1e-08,121.79,121.72,6.50076342]
[1766763126687,6.50076342,121.78,121.73,0.68]
[1766763126977,6.50076342,121.78,121.73,15.68]
[1766763127590,1e-08,121.79,121.75,8.21355236]
[1766763127885,1e-08,121.79,121.76,0.68]
[1766763128791,6.50076343,121.79,121.75,8.21355236]
[1766763128952,1e-08,121.79,121.75,8.21355236]
[1766763129357,6.50076343,121.79,121.75,8.21355236]
[1766763129764,6.50076342,121.77,121.72,17.61843638]
[1766763129966,1e-08,121.79,121.73,15.0]
[1766763130177,6.50076343,121.79,121.74,0.68]
[1766763130374,1e-08,121.79,121.74,35.93041719]
[1766763130689,6.50076343,121.79,121.74,29.42965377]
[1766763131009,6.50076343,121.79,121.75,0.68]
[1766763131010,1e-08,121.79,121.75,0.68]
[1766763131156,1e-08,121.79,121.75,7.18076342]
[1766763131356,1e-08,121.79,121.76,15.0]
[1766763131552,6.50076343,121.79,121.76,15.0]